bitfinex/quotes_SOLUSD_20251208
["timestamp","ask_amount","ask_price","bid_price","bid_amount"]
[1765235264438,7.47495888,133.78,133.76,11.29653656]
[1765235267540,0.71,133.78,133.76,10.60653656]
[1765235267832,0.71,133.77,133.75,2.40653656]
[1765235268048,0.71,133.77,133.75,10.60653656]
[1765235268416,0.71,133.77,133.75,8.2]
[1765235268624,0.71,133.77,133.75,10.60653656]
[1765235269625,7.47607655,133.76,133.75,10.60653656]
[1765235269832,7.47607655,133.76,133.75,10.58653656]
[1765235271733,7.47607655,133.76,133.75,2.40653656]
[1765235272033,7.47607655,133.76,133.75,10.58653656]
[1765235273234,7.47607655,133.76,133.75,2.40653656]
[1765235273441,7.47607655,133.76,133.75,10.58653656]
[1765235273641,8.18557037,133.77,133.75,10.58653656]
[1765235273934,26.15916828,133.8,133.76,2.40653656]
[1765235274130,0.65,133.78,133.76,2.40653656]
[1765235274842,0.65,133.79,133.76,3.12653656]
[1765235276142,7.47495888,133.78,133.77,2.40653656]
[1765235277741,7.47495888,133.78,133.76,3.12653656]
[1765235278539,7.47495888,133.78,133.76,2.40653656]
[1765235278739,7.47495888,133.78,133.77,0.72]
[1765235279042,7.47495888,133.78,133.76,2.40653656]
[1765235279239,7.47462831,133.79,133.77,3.12653656]
[1765235279415,7.47462831,133.79,133.78,2.40653656]
[1765235279618,7.47462831,133.79,133.77,3.12653656]
[1765235280046,7.47462831,133.79,133.78,8.18]
[1765235280248,7.47403942,133.8,133.78,10.58653656]
[1765235280747,7.47403942,133.8,133.76,8.18]
[1765235280748,0.71,133.79,133.76,8.18]
[1765235281124,0.71,133.79,133.76,10.58653656]
[1765235281432,0.71,133.79,133.76,8.18]
[1765235281849,7.47495888,133.78,133.76,8.18]
[1765235282344,8.18495888,133.78,133.76,8.18]
[1765235288842,0.71,133.78,133.76,8.18]
[1765235289148,0.71,133.77,133.73,16.308864]
[1765235289332,0.71,133.77,133.71,8.18]
[1765235289333,8.80994492,133.76,133.71,8.18]
[1765235289537,11.21648148,133.76,133.71,10.58653656]
[1765235289731,3.11653656,133.75,133.71,8.18]
[1765235290122,3.11653656,133.74,133.71,8.18]
[1765235290528,0.71,133.73,133.71,8.18]
[1765235292234,8.18824328,133.73,133.71,8.18]
[1765235292749,7.47824328,133.73,133.71,8.84]
[1765235292939,7.47741034,133.74,133.71,11.24653656]
[1765235293248,8.18741034,133.74,133.71,11.24653656]
[1765235294123,8.18741034,133.74,133.71,8.84]
[1765235294329,8.18741034,133.74,133.71,11.24653656]
[1765235294543,8.18741034,133.74,133.71,8.84]
[1765235295331,7.47741034,133.74,133.71,8.18]
[1765235295650,8.18806771,133.73,133.71,8.18]
[1765235296653,0.71,133.72,133.68,10.60653656]
[1765235297035,0.71,133.72,133.68,11.26653656]
[1765235297844,7.47887218,133.71,133.68,11.26653656]
[1765235298271,8.18887218,133.71,133.68,11.26653656]
[1765235300259,19.40208155,133.75,133.7,2.40653656]
[1765235300458,19.40208155,133.75,133.71,10.60653656]
[1765235300653,0.71,133.74,133.71,11.26653656]
[1765235301461,8.18719455,133.74,133.71,11.26653656]
[1765235302654,8.18719455,133.74,133.71,8.86]
[1765235303040,8.18719455,133.74,133.71,11.26653656]
[1765235305463,8.18719455,133.74,133.71,8.86]
[1765235305803,0.72,133.73,133.71,8.2]
[1765235305965,0.72,133.73,133.7,16.308864]
[1765235306269,0.72,133.73,133.71,8.2]
[1765235307755,29.29525362,133.75,133.71,8.87]
[1765235307960,0.72,133.74,133.71,8.87]
[1765235308967,7.47775368,133.73,133.71,8.87]
[1765235310156,7.47775368,133.73,133.71,10.60653656]
[1765235310358,7.47775368,133.73,133.71,11.27653656]
[1765235310673,7.47775368,133.73,133.71,8.87]
[1765235310871,0.72,133.72,133.71,8.2]
[1765235311956,8.19831289,133.72,133.71,8.2]
[1765235313295,7.47831289,133.72,133.71,8.2]
[1765235314590,19.41374481,133.74,133.71,8.87]
[1765235314591,7.47795532,133.73,133.71,8.87]
[1765235318585,0.72,133.75,133.71,8.87]
[1765235318785,0.72,133.75,133.71,12.62952481]
[1765235319362,8.19663551,133.75,133.71,12.62952481]
[1765235319766,0.72,133.74,133.71,12.62952481]
[1765235320172,7.47663551,133.75,133.71,12.62952481]
[1765235320173,7.47663551,133.75,133.72,4.42952481]
[1765235320366,7.47663551,133.75,133.73,11.95952481]
[1765235320566,7.47663551,133.75,133.73,12.62952481]
[1765235321074,7.47663551,133.75,133.74,3.75952481]
[1765235321274,7.47663551,133.75,133.73,12.62952481]
[1765235322887,7.47663551,133.75,133.73,11.95952481]
[1765235323388,0.72,133.78,133.74,0.67]
[1765235323687,0.72,133.78,133.75,11.95952481]
[1765235324697,7.47575272,133.77,133.75,11.95952481]
[1765235325278,7.47517292,133.78,133.76,3.75952481]
[1765235325782,7.47517292,133.78,133.75,8.87]
[1765235325988,8.19517292,133.78,133.76,3.75952481]
[1765235327376,26.87901928,133.8,133.76,4.42952481]
[1765235327587,0.72,133.79,133.76,4.42952481]
[1765235327901,26.87901928,133.8,133.78,3.75952481]
[1765235328079,26.87901928,133.8,133.78,8.2]
[1765235328598,0.72,133.79,133.78,8.2]
[1765235328983,8.19440017,133.79,133.78,8.2]
[1765235329474,26.88040061,133.79,133.76,8.2]
[1765235329675,0.72,133.78,133.76,8.2]
[1765235331001,8.19528412,133.78,133.76,8.2]
[1765235333097,26.16040061,133.79,133.76,11.95952481]
[1765235333412,7.47440017,133.79,133.77,4.47952481]
[1765235333591,0.66,133.8,133.78,3.75952481]
[1765235333592,8.13404277,133.8,133.78,3.75952481]
[1765235334481,8.13404277,133.8,133.79,8.18]
[1765235335837,8.13404277,133.8,133.79,11.93952481]
[1765235336403,7.47342162,133.81,133.79,12.65952481]
[1765235336900,7.47342162,133.81,133.79,11.93952481]
[1765235337202,8.13342162,133.81,133.79,11.93952481]
[1765235338475,0.66,133.8,133.77,8.18]
[1765235338678,0.66,133.8,133.76,11.93952481]
[1765235339094,0.66,133.8,133.76,8.18]
[1765235339295,0.66,133.8,133.76,11.93952481]
[1765235339897,7.47440017,133.79,133.76,11.93952481]
[1765235340597,0.66,133.78,133.76,8.18]
[1765235340782,0.66,133.78,133.73,17.028864]
[1765235340985,3.75952481,133.76,133.73,17.028864]
[1765235341196,3.75952481,133.76,133.72,8.18]
[1765235341403,0.66,133.75,133.72,8.18]
[1765235341983,7.47719455,133.74,133.72,8.18]
[1765235342487,8.13719455,133.74,133.72,8.18]
[1765235343088,7.47719455,133.74,133.72,8.18]
[1765235343296,0.66,133.73,133.72,8.18]
[1765235343909,0.66,133.73,133.7,8.18]
[1765235344106,7.47831289,133.72,133.7,8.18]
[1765235344308,3.75952481,133.71,133.62,18.80917886]
[1765235344508,3.75952481,133.7,133.65,26.21203601]
[1765235344687,4.41952481,133.7,133.66,8.18]
[1765235344887,0.66,133.69,133.66,8.18]
[1765235345294,0.66,133.69,133.66,11.93952481]
[1765235345494,0.68,133.7,133.67,3.75952481]
[1765235345689,0.68,133.71,133.67,3.75952481]
[1765235346304,7.47943156,133.7,133.67,4.42952481]
[1765235346601,7.47943156,133.7,133.67,3.75952481]
[1765235346784,8.15943156,133.7,133.67,3.75952481]
[1765235349115,7.47943156,133.7,133.67,4.42952481]
[1765235349294,0.68,133.69,133.67,3.75952481]
[1765235349710,0.68,133.69,133.66,8.18]
[1765235349711,0.68,133.69,133.66,11.93952481]
[1765235349917,0.68,133.69,133.66,8.18]
[1765235351110,7.48055056,133.68,133.66,8.18]
[1765235351493,8.16055056,133.68,133.66,8.18]
[1765235354715,8.15932083,133.71,133.67,4.42952481]
[1765235354900,8.15932083,133.71,133.68,3.75952481]
[1765235355100,8.15932083,133.71,133.69,8.2]
[1765235355302,7.47848767,133.72,133.7,3.75952481]
[1765235356613,0.68,133.71,133.69,8.2]
[1765235357615,8.159428,133.71,133.69,8.2]
[1765235358034,7.479428,133.71,133.69,12.62952481]
[1765235358213,7.4784904,133.72,133.69,12.62952481]
[1765235358391,7.4784904,133.72,133.7,4.42952481]
[1765235358593,7.4784904,133.72,133.7,3.75952481]
[1765235358990,8.15795478,133.73,133.7,4.42952481]
[1765235359790,8.15663551,133.75,133.69,15.67990323]
[1765235359996,8.15663551,133.75,133.71,3.75952481]
[1765235360222,8.15663551,133.75,133.72,8.2]
[1765235360427,0.68,133.74,133.72,8.2]
[1765235361835,7.47775368,133.73,133.72,8.2]
[1765235363236,8.18775368,133.73,133.72,8.2]
[1765235363411,30.64166269,133.73,133.7,8.2]
[1765235363604,0.71,133.72,133.7,8.2]
[1765235364006,7.47887218,133.71,133.7,8.2]
[1765235364822,8.18887218,133.71,133.7,8.2]
[1765235365015,26.88213788,133.73,133.7,8.2]
[1765235365327,0.71,133.72,133.7,11.95952481]
[1765235367317,7.47887218,133.71,133.7,11.95952481]
[1765235368328,0.71,133.71,133.7,8.2]
[1765235368703,26.17213788,133.73,133.7,8.2]
[1765235369230,26.88213788,133.73,133.7,8.9]
[1765235369419,0.71,133.72,133.7,8.2]
[1765235369618,0.71,133.72,133.69,4.45952481]
[1765235369822,0.71,133.72,133.7,8.2]
[1765235370332,7.47887218,133.71,133.7,8.2]
[1765235371628,7.47887218,133.71,133.7,12.65952481]
[1765235372012,7.4785102,133.72,133.7,12.65952481]
[1765235372730,8.1885102,133.72,133.7,11.95952481]
[1765235373622,19.4043842,133.73,133.7,11.95952481]
[1765235374022,0.71,133.72,133.7,11.95952481]
[1765235374738,8.18858334,133.72,133.7,11.95952481]
[1765235375123,8.18858334,133.72,133.71,8.2]
[1765235378236,18.6943842,133.73,133.71,8.2]
[1765235379040,19.4043842,133.73,133.71,8.2]
[1765235379636,26.88213788,133.73,133.71,8.2]
[1765235381244,7.47775368,133.73,133.71,8.2]
[1765235381446,8.18775368,133.73,133.71,8.2]
[1765235382132,0.71,133.74,133.71,8.2]
[1765235382439,0.71,133.74,133.71,8.9]
[1765235382943,0.71,133.74,133.71,11.30650813]
[1765235383321,0.71,133.74,133.71,3.10650813]
[1765235383516,0.71,133.74,133.72,8.2]
[1765235384124,8.18758808,133.74,133.72,8.2]
[1765235386522,0.71,133.73,133.72,8.2]
[1765235387845,26.16884825,133.75,133.72,8.2]
[1765235388045,0.71,133.74,133.72,8.2]
[1765235388943,7.47775368,133.73,133.72,8.2]
[1765235389829,8.18775368,133.73,133.72,8.2]
[1765235390024,26.16884825,133.75,133.72,8.2]
[1765235390422,0.71,133.74,133.72,8.2]
[1765235390830,3.11650813,133.74,133.69,3.10650813]
[1765235391148,0.71,133.73,133.7,8.2]
[1765235392233,7.47831289,133.72,133.7,8.2]
[1765235392754,8.13831289,133.72,133.7,8.2]
[1765235402235,8.19831289,133.72,133.7,8.2]
[1765235402435,7.47831289,133.72,133.7,8.2]
[1765235402631,8.19831289,133.72,133.7,8.2]
[1765235404363,26.17279277,133.73,133.7,8.2]
[1765235404549,0.72,133.72,133.7,8.2]
[1765235405562,2.40650813,133.71,133.66,16.958864]
[1765235405759,2.40650813,133.71,133.67,8.2]
[1765235406059,0.72,133.7,133.67,8.2]
[1765235406673,2.40650813,133.68,133.67,8.2]
[1765235407043,0.72,133.68,133.67,8.2]
[1765235407339,3.12650813,133.68,133.65,8.2]
[1765235407739,0.72,133.67,133.65,8.2]
[1765235410156,8.2011745,133.67,133.65,8.2]
[1765235410458,10.60768263,133.67,133.63,8.2]
[1765235410665,0.72,133.66,133.63,8.2]
[1765235411168,8.20190254,133.66,133.63,8.2]
[1765235411538,0.72,133.65,133.63,8.2]
[1765235413154,8.20230532,133.65,133.63,10.60650813]
[1765235413340,8.20230532,133.65,133.63,8.2]
[1765235415849,0.72,133.64,133.63,8.2]
[1765235416351,8.2016699,133.66,133.63,10.60650813]
[1765235416868,11.93645305,133.65,133.62,0.1]
[1765235417074,2.40650813,133.64,133.62,0.1]
[1765235417244,3.12650813,133.64,133.62,0.1]
[1765235417444,0.72,133.63,133.62,0.1]
[1765235418448,2.40650813,133.64,133.62,0.1]
[1765235418449,0.72,133.64,133.62,0.1]
[1765235418668,8.20320044,133.64,133.62,2.50650813]
[1765235419074,8.20320044,133.64,133.62,0.1]
[1765235424157,26.18849049,133.65,133.62,0.77]
[1765235424451,26.87849049,133.65,133.62,0.77]
[1765235425361,8.1722297,133.65,133.62,0.77]
[1765235426575,8.1722297,133.65,133.63,8.2]
[1765235427572,0.69,133.64,133.63,8.2]
[1765235428864,8.17278958,133.64,133.63,8.2]
[1765235435477,7.48278958,133.64,133.63,8.2]
[1765235435682,7.4822297,133.65,133.63,8.2]
[1765235435982,0.69,133.64,133.63,8.2]
[1765235437259,8.17278958,133.64,133.63,8.2]
[1765235445291,20.7475612,133.64,133.62,0.1]
[1765235445587,13.26477162,133.63,133.62,0.1]
[1765235447284,20.74812116,133.63,133.62,0.1]
[1765235451688,0.71,133.65,133.62,0.1]
[1765235451882,0.71,133.64,133.62,0.1]
[1765235453180,7.48334954,133.63,133.62,0.1]
[1765235453571,7.48280981,133.64,133.62,0.1]
[1765235453772,19.41417477,133.66,133.62,4.5548267]
[1765235453989,7.48232776,133.65,133.62,4.5548267]
[1765235454374,8.19232776,133.65,133.62,4.5548267]
[1765235454796,8.19232776,133.65,133.62,0.79]
[1765235455092,8.19232776,133.65,133.62,4.5548267]
[1765235456594,8.19232776,133.65,133.62,0.79]
[1765235456898,8.19232776,133.65,133.62,4.5548267]
[1765235459396,7.48111019,133.67,133.64,3.7648267]
[1765235459573,0.71,133.66,133.63,4.4548267]
[1765235459994,0.71,133.66,133.63,3.7648267]
[1765235460194,0.71,133.66,133.63,4.4548267]
[1765235460494,0.71,133.66,133.64,3.7648267]
[1765235461073,0.71,133.66,133.62,26.9780744]
[1765235461273,0.71,133.66,133.64,3.7648267]
[1765235461493,8.19194088,133.66,133.64,3.7648267]
[1765235464183,0.71,133.65,133.64,3.7648267]
[1765235464389,0.71,133.65,133.62,19.49417477]
[1765235464593,0.71,133.65,133.64,3.7648267]
[1765235464792,7.48194088,133.66,133.64,3.7648267]
[1765235464988,8.15194088,133.66,133.64,3.7648267]
[1765235465599,7.48194088,133.66,133.64,3.7648267]
[1765235465795,0.67,133.65,133.63,3.7648267]
[1765235465999,7.48278958,133.64,133.62,0.1]
[1765235466500,0.67,133.63,133.62,0.1]
[1765235468088,8.15334954,133.63,133.62,0.1]
[1765235468904,7.48334954,133.63,133.62,0.1]
[1765235469103,8.15334954,133.63,133.62,0.1]
[1765235472913,8.15334954,133.63,133.62,0.76]
[1765235472914,7.48334954,133.63,133.62,0.76]
[1765235473410,7.48334954,133.63,133.62,0.1]
[1765235474210,7.48278958,133.64,133.62,0.1]
[1765235474414,0.67,133.63,133.62,0.1]
[1765235475917,8.15334954,133.63,133.62,0.1]
[1765235476913,7.48334954,133.63,133.62,0.1]
[1765235478006,0.67,133.63,133.62,0.1]
[1765235478211,8.15278958,133.64,133.62,0.1]
[1765235478689,0.67,133.63,133.62,0.1]
[1765235479087,13.24477162,133.63,133.62,0.1]
[1765235480115,20.72812116,133.63,133.62,0.1]
[1765235480312,28.92812116,133.63,133.62,1e-08]
[1765235481116,28.92812116,133.63,133.6,1e-08]
[1765235481117,12.57477162,133.61,133.6,1e-08]
[1765235481414,20.77477162,133.61,133.6,1e-08]
[1765235481616,21.43477162,133.61,133.6,1e-08]
[1765235482404,28.91924134,133.61,133.6,1e-08]
[1765235483409,16.95441464,133.61,133.6,1e-08]
[1765235483615,7.48446972,133.61,133.6,1e-08]
[1765235484615,8.14446972,133.61,133.6,1e-08]
[1765235485401,7.48446972,133.61,133.6,1e-08]
[1765235487815,8.14446972,133.61,133.6,1e-08]
[1765235488021,20.71924134,133.61,133.6,1e-08]
[1765235489096,16.95441464,133.61,133.6,1e-08]
[1765235490634,8.14446972,133.61,133.6,1e-08]
[1765235490848,7.48446972,133.61,133.6,1e-08]
[1765235491331,8.14446972,133.61,133.6,1e-08]
[1765235491808,7.48446972,133.61,133.6,1e-08]
[1765235494831,8.14446972,133.61,133.6,1e-08]
[1765235495722,20.71924134,133.61,133.6,1e-08]
[1765235498830,28.91924134,133.61,133.6,1e-08]
[1765235500834,27.56626925,133.61,133.6,1e-08]
[1765235504839,26.90626925,133.61,133.6,1e-08]
[1765235505016,16.95441464,133.61,133.6,1e-08]
[1765235505836,7.48446972,133.61,133.6,0.68000001]
[1765235507227,7.48446972,133.61,133.6,1e-08]
[1765235513334,10.54632433,133.61,133.6,1e-08]
[1765235513537,19.35626925,133.61,133.6,1e-08]
[1765235516540,16.94441464,133.61,133.6,1e-08]
[1765235516741,19.35626925,133.61,133.6,1e-08]
[1765235517517,7.48446972,133.61,133.6,1e-08]
[1765235521336,8.20446972,133.61,133.6,1e-08]
[1765235522050,7.48446972,133.61,133.6,1e-08]
[1765235522652,7.48446972,133.61,133.6,0.69000001]
[1765235523549,7.48413269,133.62,133.6,3.10185462]
[1765235523756,7.48413269,133.62,133.61,2.41185461]
[1765235523926,7.48413269,133.62,133.6,1e-08]
[1765235524132,7.48413269,133.62,133.6,0.69000001]
[1765235525154,7.48334954,133.63,133.6,0.69000001]
[1765235525653,7.48334954,133.63,133.61,2.41185461]
[1765235526350,0.72,133.71,133.65,16.308864]
[1765235526526,3.13185461,133.7,133.65,26.92071861]
[1765235526726,8.80994492,133.69,133.65,10.61185461]
[1765235526922,9.52994492,133.69,133.65,11.30185461]
[1765235527144,9.52994492,133.69,133.65,2.41185461]
[1765235527354,9.52994492,133.69,133.66,0.69]
[1765235527550,8.19943156,133.7,133.66,3.10185461]
[1765235527728,8.19943156,133.7,133.67,2.41185461]
[1765235527928,8.19943156,133.7,133.67,3.10185461]
[1765235528147,7.47943156,133.7,133.67,3.10185461]
[1765235528349,8.19943156,133.7,133.67,3.10185461]
[1765235531956,8.19943156,133.7,133.67,0.69]
[1765235532246,8.19943156,133.7,133.67,3.10185461]
[1765235534867,7.47943156,133.7,133.67,3.10185461]
[1765235535165,0.72,133.69,133.66,2.41185461]
[1765235535332,0.72,133.69,133.65,2.41185461]
[1765235535738,0.72,133.69,133.65,3.10185461]
[1765235536366,9.52994492,133.69,133.65,2.41185461]
[1765235536838,0.72,133.68,133.65,2.41185461]
[1765235537036,0.72,133.68,133.65,3.10185461]
[1765235537265,8.20106581,133.68,133.65,3.10185461]
[1765235537838,8.20106581,133.68,133.66,2.41185461]
[1765235538034,7.47887218,133.71,133.67,2.41185461]
[1765235538349,7.47887218,133.71,133.69,2.41185461]
[1765235538543,8.19887218,133.71,133.69,2.41185461]
[1765235539647,8.19887218,133.71,133.68,3.10185461]
[1765235539854,0.72,133.7,133.67,2.41185461]
[1765235540464,0.72,133.7,133.67,3.10185461]
[1765235542954,7.47999102,133.69,133.67,3.10185461]
[1765235544748,26.17605264,133.71,133.68,3.13185461]
[1765235544946,7.47887218,133.71,133.68,0.72]
[1765235545176,8.13887218,133.71,133.68,3.13185461]
[1765235546069,7.47831289,133.72,133.68,2.41185461]
[1765235546265,8.13831289,133.72,133.69,2.41185461]
[1765235546961,7.47831289,133.72,133.69,3.13185461]
[1765235547149,8.13831289,133.72,133.69,3.13185461]
[1765235547767,8.13831289,133.72,133.69,2.41185461]
[1765235548068,8.13831289,133.72,133.69,3.13185461]
[1765235550165,8.13831289,133.72,133.69,2.41185461]
[1765235550370,8.13831289,133.72,133.69,3.13185461]
[1765235551070,8.13831289,133.72,133.69,2.41185461]
[1765235552363,8.13831289,133.72,133.68,8.92]
[1765235552673,8.13831289,133.72,133.69,2.41185461]
[1765235556173,8.13915983,133.71,133.69,2.41185461]
[1765235558473,8.13915983,133.71,133.68,11.33185461]
[1765235558676,3.07185461,133.7,133.65,11.33185461]
[1765235559054,0.66,133.69,133.65,11.33185461]
[1765235559976,0.66,133.69,133.65,8.92]
[1765235560181,11.22179953,133.68,133.65,8.2]
[1765235560475,9.8929648,133.67,133.63,8.2]
[1765235560653,11.90557185,133.67,133.63,8.2]
[1765235561003,0.66,133.66,133.63,8.2]
[1765235563379,7.4822297,133.65,133.63,8.2]
[1765235563755,8.1422297,133.65,133.63,8.2]
[1765235564967,0.66,133.64,133.61,20.07332566]
[1765235565171,0.66,133.64,133.61,12.68446166]
[1765235565681,8.1422297,133.65,133.62,3.76446166]
[1765235565882,8.1422297,133.65,133.62,4.48446166]
[1765235570385,0.66,133.64,133.62,3.76446166]
[1765235571269,7.48278958,133.64,133.62,3.76446166]
[1765235571673,0.68,133.63,133.61,8.2]
[1765235573386,7.48390959,133.62,133.61,8.2]
[1765235574463,7.48390959,133.62,133.6,1e-08]
[1765235574668,0.68,133.61,133.6,1e-08]
[1765235575490,8.16446972,133.61,133.6,1e-08]
[1765235575695,20.7388763,133.61,133.6,1e-08]
[1765235578276,7.48446972,133.61,133.6,1e-08]
[1765235579294,8.16446972,133.61,133.6,1e-08]
[1765235580688,8.16390959,133.62,133.6,1e-08]
[1765235581676,9.48994492,133.61,133.6,1e-08]
[1765235582101,117.75440658,133.61,133.6,1e-08]
[1765235583394,113.98994492,133.61,133.6,1e-08]
[1765235583700,13.25440658,133.61,133.6,1e-08]
[1765235583997,16.97441464,133.61,133.6,1e-08]
[1765235584200,20.7388763,133.61,133.6,1e-08]
[1765235586102,28.9388763,133.61,133.6,1e-08]
[1765235586602,47.65005061,133.61,133.58,1e-08]
[1765235586804,12.57440658,133.59,133.58,1e-08]
[1765235587401,13.23440658,133.59,133.58,1e-08]
[1765235588402,28.91999681,133.59,133.58,1e-08]
[1765235588602,9.46994492,133.58,133.57,1e-08]
[1765235588773,13.23440658,133.58,133.57,1e-08]
[1765235589176,113.96994492,133.57,133.56,1e-08]
[1765235589404,117.73440658,133.57,133.56,1e-08]
[1765235589698,113.96994492,133.57,133.56,1e-08]
[1765235590101,117.73440658,133.57,133.56,1e-08]
[1765235590402,125.22111766,133.57,133.56,1e-08]
[1765235592207,121.456656,133.57,133.56,1e-08]
[1765235594505,120.796656,133.57,133.56,1e-08]
[1765235595107,121.456656,133.57,133.56,1e-08]
[1765235597188,120.796656,133.57,133.56,1e-08]
[1765235597394,121.456656,133.57,133.56,1e-08]
[1765235598821,111.98671108,133.57,133.56,1e-08]
[1765235600017,112.64671108,133.57,133.56,1e-08]
[1765235603023,121.456656,133.57,133.56,1e-08]
[1765235605019,120.796656,133.57,133.56,1e-08]
[1765235605214,111.98671108,133.57,133.56,0.69000001]
[1765235605523,111.98671108,133.57,133.56,1e-08]
[1765235610616,111.98671108,133.57,133.56,4.45446167]
[1765235611228,111.98671108,133.57,133.56,0.69000001]
[1765235613116,7.48635383,133.58,133.56,4.45446167]
[1765235613423,7.48635383,133.58,133.57,4.45446166]
[1765235613931,7.48502994,133.6,133.57,4.45446166]
[1765235614127,8.13502994,133.6,133.57,4.45446166]
[1765235614538,26.84760479,133.6,133.57,4.45446166]
[1765235615433,26.84760479,133.6,133.57,0.69]
[1765235615629,26.84760479,133.6,133.57,4.45446166]
[1765235616713,26.19760479,133.6,133.58,0.69]
[1765235616918,26.84760479,133.6,133.57,4.45446166]
[1765235618736,0.65,133.59,133.56,8.20000001]
[1765235619039,0.65,133.59,133.56,8.89000001]
[1765235619724,0.65,133.59,133.56,12.65446167]
[1765235619923,26.19760479,133.6,133.57,0.69]
[1765235620122,26.84760479,133.6,133.57,4.45446166]
[1765235620744,26.84760479,133.6,133.57,3.10115868]
[1765235621246,26.84760479,133.6,133.57,2.41115868]
[1765235621449,7.48615062,133.58,133.57,2.41115868]
[1765235622349,7.48615062,133.58,133.56,11.30115869]
[1765235622946,7.48615062,133.58,133.57,2.41115868]
[1765235623450,0.65,133.59,133.57,3.10115868]
[1765235623451,7.48559023,133.59,133.57,3.10115868]
[1765235623850,7.48559023,133.59,133.58,2.41115868]
[1765235624648,26.19760479,133.6,133.58,2.41115868]
[1765235624825,0.65,133.59,133.58,2.41115868]
[1765235625446,26.19760479,133.6,133.58,3.10115868]
[1765235625643,26.19760479,133.6,133.59,2.41115868]
[1765235626350,26.84760479,133.6,133.59,2.41115868]
[1765235626645,26.84760479,133.6,133.58,2.41115868]
[1765235627420,26.19760479,133.6,133.58,3.10115868]
[1765235627851,26.19760479,133.6,133.58,2.41115868]
[1765235628048,26.84760479,133.6,133.58,2.41115868]
[1765235630831,26.19760479,133.6,133.58,2.41115868]
[1765235631073,26.84760479,133.6,133.58,2.41115868]
[1765235631635,26.84760479,133.6,133.57,0.69]
[1765235631833,26.84760479,133.6,133.58,2.41115868]
[1765235634163,26.19760479,133.6,133.58,2.41115868]
[1765235634469,0.7,133.59,133.58,2.41115868]
[1765235635263,26.89760479,133.6,133.58,2.41115868]
[1765235635471,0.7,133.59,133.57,2.41115868]
[1765235635962,0.7,133.59,133.56,2.41115869]
[1765235636775,7.48615062,133.58,133.56,2.41115869]
[1765235639278,0.7,133.57,133.56,2.41115869]
[1765235639469,0.7,133.57,133.56,1e-08]
[1765235641090,8.18671108,133.57,133.56,1e-08]
[1765235641560,8.18671108,133.57,133.56,2.41115869]
[1765235642560,8.18671108,133.57,133.56,1e-08]
[1765235646378,8.18671108,133.57,133.56,2.41115869]
[1765235646565,7.48671108,133.57,133.56,3.10115869]
[1765235647159,104.5,133.58,133.56,5.51231737]
[1765235647364,104.5,133.58,133.57,3.10115868]
[1765235647883,104.5,133.58,133.57,11.30115868]
[1765235648089,7.48580106,133.59,133.57,11.30115868]
[1765235648393,7.48580106,133.59,133.58,2.41115868]
[1765235648591,7.48502994,133.6,133.58,2.41115868]
[1765235648765,7.48502994,133.6,133.59,2.41115868]
[1765235650685,26.19623151,133.61,133.57,8.2]
[1765235650991,105.17,133.6,133.57,10.61115868]
[1765235651162,105.17,133.6,133.57,2.41115868]
[1765235651488,0.67,133.59,133.56,1e-08]
[1765235651988,7.48615062,133.58,133.56,0.69000001]
[1765235653190,0.67,133.57,133.56,1e-08]
[1765235654398,8.15671108,133.57,133.56,1e-08]
[1765235655701,7.48671108,133.57,133.56,0.69000001]
[1765235656275,7.48671108,133.57,133.56,1e-08]
[1765235659886,0.67,133.57,133.56,1e-08]
[1765235662191,8.15671108,133.57,133.56,1e-08]
[1765235663005,7.48671108,133.57,133.56,3.11115869]
[1765235667627,26.19971609,133.59,133.56,3.11115869]
[1765235667823,26.90971609,133.59,133.57,2.41115868]
[1765235669514,26.19971609,133.59,133.57,3.11115868]
[1765235670512,26.19971609,133.59,133.57,2.41115868]
[1765235670712,26.90971609,133.59,133.57,2.41115868]
[1765235672817,26.90971609,133.59,133.56,3.11115869]
[1765235673650,26.90971609,133.59,133.57,2.41115868]